[Event "*** Titled Tuesday Blitz"]
[Site "Chess.com"]
[Date "2020.10.27"]
[Round "7"]
[White "nelsoncopa"]
[Black "AnnaChessLook"]
[Result "0-1"]
[WhiteElo "1897"]
[BlackElo "2236"]
[TimeControl "180+1"]
[EndTime "11:19:26 PDT"]
[Termination "AnnaChessLook won by checkmate"]

1. d4 {[%clk 0:03:00.9]} 1... Nf6 {[%clk 0:02:57.3]} 2. c4 {[%clk 0:03:01.8]}
2... c5 {[%clk 0:02:54.6]} 3. d5 {[%clk 0:03:01.2]} 3... b5 {[%clk 0:02:54.5]}
4. cxb5 {[%clk 0:03:00.3]} 4... a6 {[%clk 0:02:54.5]} 5. bxa6 {[%clk 0:03:00.4]}
5... g6 {[%clk 0:02:54.9]} 6. Nc3 {[%clk 0:03:01.1]} 6... Bg7 {[%clk 0:02:54.8]}
7. Nf3 {[%clk 0:03:00.8]} 7... O-O {[%clk 0:02:54.4]} 8. e4 {[%clk 0:03:01.1]}
8... Qa5 {[%clk 0:02:54.4]} 9. Bd2 {[%clk 0:02:56.1]} 9... Bxa6 {[%clk
0:02:53.1]} 10. Be2 {[%clk 0:02:52.5]} 10... Bxe2 {[%clk 0:02:50.1]} 11. Qxe2
{[%clk 0:02:52]} 11... Qa6 {[%clk 0:02:50.7]} 12. Qxa6 {[%clk 0:02:47.6]} 12...
Nxa6 {[%clk 0:02:50.7]} 13. a3 {[%clk 0:02:47]} 13... Rfb8 {[%clk 0:02:50.3]}
14. Rb1 {[%clk 0:02:45.3]} 14... d6 {[%clk 0:02:49.6]} 15. O-O {[%clk
0:02:44.4]} 15... Rb3 {[%clk 0:02:43.9]} 16. Rfe1 {[%clk 0:02:42.2]} 16... Rab8
{[%clk 0:02:42.6]} 17. Na4 {[%clk 0:02:35.4]} 17... Nd7 {[%clk 0:02:38]} 18. Bc3
{[%clk 0:02:26.8]} 18... Nc7 {[%clk 0:02:25.7]} 19. Bxg7 {[%clk 0:02:25.1]}
19... Kxg7 {[%clk 0:02:24.9]} 20. Nd2 {[%clk 0:02:25.4]} 20... R3b7 {[%clk
0:02:13.8]} 21. f4 {[%clk 0:02:19.3]} 21... Nb5 {[%clk 0:02:11.6]} 22. Nc4
{[%clk 0:02:16.4]} 22... Nd4 {[%clk 0:02:08.3]} 23. e5 {[%clk 0:02:04.5]} 23...
Ra7 {[%clk 0:01:36.8]} 24. Nc3 {[%clk 0:02:00.7]} 24... Nb6 {[%clk 0:01:36.3]}
25. Nxb6 {[%clk 0:01:59.4]} 25... Rxb6 {[%clk 0:01:37.2]} 26. exd6 {[%clk
0:01:48.6]} 26... exd6 {[%clk 0:01:38.1]} 27. Ne4 {[%clk 0:01:19.9]} 27... Rab7
{[%clk 0:01:35.1]} 28. h3 {[%clk 0:01:17.5]} 28... f5 {[%clk 0:01:31.9]} 29. Ng5
{[%clk 0:01:15.9]} 29... Rxb2 {[%clk 0:01:08.2]} 30. Rxb2 {[%clk 0:01:14.1]}
30... Rxb2 {[%clk 0:01:09.1]} 31. Re7+ {[%clk 0:01:10.9]} 31... Kg8 {[%clk
0:01:09.3]} 32. Rd7 {[%clk 0:01:07.9]} 32... h6 {[%clk 0:01:05]} 33. Ne6 {[%clk
0:01:03.9]} 33... Nxe6 {[%clk 0:01:04.8]} 34. dxe6 {[%clk 0:01:03.2]} 34... Rd2
{[%clk 0:01:05.3]} 35. a4 {[%clk 0:00:58.1]} 35... Kf8 {[%clk 0:01:00]} 36. a5
{[%clk 0:00:54.7]} 36... Ra2 {[%clk 0:00:55.3]} 37. Ra7 {[%clk 0:00:50]} 37...
c4 {[%clk 0:00:52.1]} 38. a6 {[%clk 0:00:47.2]} 38... c3 {[%clk 0:00:51.5]} 39.
Rc7 {[%clk 0:00:46.9]} 39... Rxa6 {[%clk 0:00:50.8]} 40. Rxc3 {[%clk 0:00:46.1]}
40... Ke7 {[%clk 0:00:51.2]} 41. Re3 {[%clk 0:00:36.7]} 41... d5 {[%clk
0:00:50.6]} 42. Re5 {[%clk 0:00:34.8]} 42... d4 {[%clk 0:00:50.9]} 43. Rd5
{[%clk 0:00:33.1]} 43... Rd6 {[%clk 0:00:50.7]} 44. Rxd6 {[%clk 0:00:25.8]}
44... Kxd6 {[%clk 0:00:51.6]} 45. Kf2 {[%clk 0:00:25.1]} 45... Kxe6 {[%clk
0:00:51.6]} 46. Ke2 {[%clk 0:00:25.5]} 46... Kd6 {[%clk 0:00:49.3]} 47. Kd3
{[%clk 0:00:26.4]} 47... Kd5 {[%clk 0:00:49.8]} 48. g3 {[%clk 0:00:25]} 48... h5
{[%clk 0:00:45.1]} 49. h4 {[%clk 0:00:24.3]} 49... Kc5 {[%clk 0:00:45.5]} 50.
Kc2 {[%clk 0:00:18.1]} 50... Kc4 {[%clk 0:00:45.7]} 51. Kd2 {[%clk 0:00:19]}
51... d3 {[%clk 0:00:45.5]} 52. Kd1 {[%clk 0:00:18.4]} 52... Kc3 {[%clk
0:00:43]} 53. g4 {[%clk 0:00:16.4]} 53... hxg4 {[%clk 0:00:42.5]} 54. Ke1 {[%clk
0:00:13.1]} 54... g3 {[%clk 0:00:42.1]} 55. Kd1 {[%clk 0:00:12.5]} 55... g2
{[%clk 0:00:41.3]} 56. Ke1 {[%clk 0:00:11.7]} 56... g1=Q# {[%clk 0:00:41.4]} 0-1

[Event "*** Titled Tuesday Blitz"]
[Site "Chess.com"]
[Date "2020.10.27"]
[Round "7"]
[White "Sankalp_Gupta2003"]
[Black "boasovietica"]
[Result "1-0"]
[WhiteElo "2713"]
[BlackElo "2498"]
[TimeControl "180+1"]
[EndTime "11:19:28 PDT"]
[Termination "Sankalp_Gupta2003 won by resignation"]

1. e4 {[%clk 0:03:00.9]} 1... e5 {[%clk 0:02:59.3]} 2. Nc3 {[%clk 0:02:57.4]}
2... Nf6 {[%clk 0:02:58.1]} 3. g3 {[%clk 0:02:56.8]} 3... Nc6 {[%clk 0:02:57.9]}
4. Bg2 {[%clk 0:02:56.4]} 4... Bc5 {[%clk 0:02:58.3]} 5. d3 {[%clk 0:02:55.8]}
5... a5 {[%clk 0:02:57]} 6. h3 {[%clk 0:02:54.5]} 6... d6 {[%clk 0:02:56.6]} 7.
Nge2 {[%clk 0:02:54.2]} 7... Be6 {[%clk 0:02:56.9]} 8. Nd5 {[%clk 0:02:51.9]}
8... Qd7 {[%clk 0:02:37.3]} 9. Bg5 {[%clk 0:02:46.3]} 9... Ng8 {[%clk
0:02:35.4]} 10. c3 {[%clk 0:02:41.1]} 10... h6 {[%clk 0:02:21.1]} 11. Be3 {[%clk
0:02:40.8]} 11... Bxe3 {[%clk 0:02:12]} 12. Nxe3 {[%clk 0:02:41.7]} 12... Nge7
{[%clk 0:01:56.9]} 13. d4 {[%clk 0:02:39.8]} 13... exd4 {[%clk 0:01:53]} 14.
cxd4 {[%clk 0:02:40.7]} 14... d5 {[%clk 0:01:51.6]} 15. e5 {[%clk 0:02:40.2]}
15... O-O {[%clk 0:01:50.9]} 16. Nf4 {[%clk 0:02:32]} 16... Nf5 {[%clk
0:00:57.9]} 17. Nxf5 {[%clk 0:02:27.4]} 17... Bxf5 {[%clk 0:00:58.8]} 18. O-O
{[%clk 0:02:22.8]} 18... Ne7 {[%clk 0:00:54.6]} 19. Kh2 {[%clk 0:02:18.6]} 19...
Rac8 {[%clk 0:00:50.1]} 20. Nd3 {[%clk 0:02:15.6]} 20... Bxd3 {[%clk 0:00:48.3]}
21. Qxd3 {[%clk 0:02:16.5]} 21... c5 {[%clk 0:00:47]} 22. dxc5 {[%clk
0:02:15.6]} 22... Rxc5 {[%clk 0:00:47.9]} 23. Rfd1 {[%clk 0:02:13.1]} 23... Rfc8
{[%clk 0:00:47.3]} 24. Rd2 {[%clk 0:02:13.1]} 24... Qc7 {[%clk 0:00:27.5]} 25.
f4 {[%clk 0:02:11.6]} 25... Rc2 {[%clk 0:00:19.1]} 26. Rad1 {[%clk 0:02:11.4]}
26... Rxd2 {[%clk 0:00:18.5]} 27. Rxd2 {[%clk 0:02:12.3]} 27... Rd8 {[%clk
0:00:18.2]} 28. Re2 {[%clk 0:02:08.1]} 28... Nc6 {[%clk 0:00:14.7]} 29. e6
{[%clk 0:02:00.9]} 29... fxe6 {[%clk 0:00:14.7]} 30. Rxe6 {[%clk 0:02:01.8]}
30... d4 {[%clk 0:00:14]} 31. Re1 {[%clk 0:01:41.3]} 31... Kh8 {[%clk 0:00:11]}
32. Qf5 {[%clk 0:01:39.1]} 32... Qd7 {[%clk 0:00:05.7]} 33. Qg6 {[%clk
0:01:35.8]} 33... Ne7 {[%clk 0:00:04.9]} 34. Qf7 {[%clk 0:01:31.6]} 34... Nf5
{[%clk 0:00:03.7]} 35. Qg6 {[%clk 0:01:16.3]} 35... Ne3 {[%clk 0:00:01.8]} 36.
Be4 {[%clk 0:01:14.6]} 36... Kg8 {[%clk 0:00:02.4]} 37. Qh7+ {[%clk 0:00:33.5]}
37... Kf7 {[%clk 0:00:02.7]} 38. Bg6+ {[%clk 0:00:24.4]} 38... Kf6 {[%clk
0:00:03]} 39. Bd3 {[%clk 0:00:25]} 39... Qc7 {[%clk 0:00:01.7]} 40. Qg6+ {[%clk
0:00:24.6]} 40... Ke7 {[%clk 0:00:02.2]} 41. Qxg7+ {[%clk 0:00:25]} 41... Kd6
{[%clk 0:00:02.8]} 42. Qxd4+ {[%clk 0:00:25.2]} 42... Nd5 {[%clk 0:00:03.3]} 43.
Re5 {[%clk 0:00:20.6]} 43... Kc6 {[%clk 0:00:03.8]} 44. Be4 {[%clk 0:00:19.8]}
44... Qd6 {[%clk 0:00:03.8]} 45. f5 {[%clk 0:00:19.9]} 45... b5 {[%clk
0:00:03.3]} 46. Re6 {[%clk 0:00:20.1]} 1-0

[Event "*** Titled Tuesday Blitz"]
[Site "Chess.com"]
[Date "2020.10.27"]
[Round "7"]
[White "blitzking1729"]
[Black "German_Bazeev"]
[Result "1-0"]
[WhiteElo "2580"]
[BlackElo "2747"]
[TimeControl "180+1"]
[EndTime "11:19:31 PDT"]
[Termination "blitzking1729 won on time"]

1. d4 {[%clk 0:03:00.9]} 1... Nf6 {[%clk 0:02:59.9]} 2. Bg5 {[%clk 0:02:59.8]}
2... c5 {[%clk 0:02:59.7]} 3. Nc3 {[%clk 0:02:58.5]} 3... cxd4 {[%clk
0:02:59.4]} 4. Qxd4 {[%clk 0:02:59.4]} 4... Nc6 {[%clk 0:02:59.6]} 5. Qh4 {[%clk
0:02:58.9]} 5... e6 {[%clk 0:02:59.5]} 6. O-O-O {[%clk 0:02:58.8]} 6... Be7
{[%clk 0:02:55.3]} 7. e4 {[%clk 0:02:58.5]} 7... h6 {[%clk 0:02:55.3]} 8. f4
{[%clk 0:02:48.7]} 8... d5 {[%clk 0:02:52.4]} 9. exd5 {[%clk 0:02:37.3]} 9...
Nxd5 {[%clk 0:02:43.5]} 10. Nxd5 {[%clk 0:02:27.8]} 10... Bxg5 {[%clk 0:02:42]}
11. fxg5 {[%clk 0:02:26]} 11... exd5 {[%clk 0:02:40.8]} 12. Nf3 {[%clk
0:02:20.9]} 12... Qa5 {[%clk 0:02:32.1]} 13. Qe1+ {[%clk 0:02:12.7]} 13... Qxe1
{[%clk 0:02:29.9]} 14. Rxe1+ {[%clk 0:02:13.6]} 14... Be6 {[%clk 0:02:30]} 15.
Bb5 {[%clk 0:02:10.9]} 15... O-O-O {[%clk 0:01:55.2]} 16. Bxc6 {[%clk
0:02:07.8]} 16... bxc6 {[%clk 0:01:55.1]} 17. g6 {[%clk 0:02:05.8]} 17... Rhf8
{[%clk 0:01:50.9]} 18. gxf7 {[%clk 0:02:03]} 18... Bxf7 {[%clk 0:01:50.6]} 19.
Ne5 {[%clk 0:02:03.9]} 19... Be8 {[%clk 0:01:49.8]} 20. Rhf1 {[%clk 0:02:00.4]}
20... Rxf1 {[%clk 0:01:42]} 21. Rxf1 {[%clk 0:01:58.3]} 21... Kc7 {[%clk
0:01:42.9]} 22. Kd2 {[%clk 0:01:52.9]} 22... c5 {[%clk 0:01:33.3]} 23. Rf8
{[%clk 0:01:47.5]} 23... Bh5 {[%clk 0:01:23.6]} 24. Rf5 {[%clk 0:01:35.6]} 24...
Be8 {[%clk 0:01:21.9]} 25. Rf8 {[%clk 0:01:32.2]} 25... Bh5 {[%clk 0:01:20.7]}
26. Rxd8 {[%clk 0:01:19.7]} 26... Kxd8 {[%clk 0:01:19.1]} 27. Nd3 {[%clk
0:01:19.7]} 27... c4 {[%clk 0:01:14.7]} 28. Nf4 {[%clk 0:01:18.9]} 28... Bf7
{[%clk 0:01:14]} 29. Ke3 {[%clk 0:01:18.9]} 29... Kc7 {[%clk 0:01:09.8]} 30. Kd4
{[%clk 0:01:16.6]} 30... Kd6 {[%clk 0:01:10.2]} 31. b3 {[%clk 0:01:12.6]} 31...
cxb3 {[%clk 0:01:09.8]} 32. cxb3 {[%clk 0:01:13.5]} 32... g5 {[%clk 0:01:08.4]}
33. Nd3 {[%clk 0:01:12.9]} 33... h5 {[%clk 0:01:08.5]} 34. g3 {[%clk 0:01:06.6]}
34... h4 {[%clk 0:01:07.9]} 35. Ne5 {[%clk 0:01:00.7]} 35... Be6 {[%clk
0:01:04.6]} 36. Nf3 {[%clk 0:00:56.2]} 36... hxg3 {[%clk 0:01:02]} 37. hxg3
{[%clk 0:00:57.1]} 37... g4 {[%clk 0:01:01.7]} 38. Ne5 {[%clk 0:00:53.3]} 38...
a5 {[%clk 0:01:00.6]} 39. a3 {[%clk 0:00:52.8]} 39... Bc8 {[%clk 0:00:59.3]} 40.
Nf7+ {[%clk 0:00:49.9]} 40... Kc6 {[%clk 0:00:54.9]} 41. Ne5+ {[%clk 0:00:41.9]}
41... Kd6 {[%clk 0:00:54.9]} 42. b4 {[%clk 0:00:37.1]} 42... axb4 {[%clk
0:00:54.4]} 43. axb4 {[%clk 0:00:38]} 43... Ba6 {[%clk 0:00:50]} 44. Nxg4 {[%clk
0:00:37.2]} 44... Kc6 {[%clk 0:00:40.1]} 45. Ne3 {[%clk 0:00:31]} 45... Bc8
{[%clk 0:00:37.6]} 46. Nxd5 {[%clk 0:00:30.1]} 46... Kb5 {[%clk 0:00:37.6]} 47.
Kc3 {[%clk 0:00:25.6]} 1-0

[Event "*** Titled Tuesday Blitz"]
[Site "Chess.com"]
[Date "2020.10.27"]
[Round "7"]
[White "pedromartinez91"]
[Black "Zq1"]
[Result "1-0"]
[WhiteElo "2627"]
[BlackElo "2489"]
[TimeControl "180+1"]
[EndTime "11:19:33 PDT"]
[Termination "pedromartinez91 won by resignation"]

1. b3 {[%clk 0:03:00.9]} 1... d5 {[%clk 0:02:59.2]} 2. Bb2 {[%clk 0:03:01.8]}
2... c5 {[%clk 0:02:58.5]} 3. e3 {[%clk 0:03:01.8]} 3... Nc6 {[%clk 0:02:57.2]}
4. Nf3 {[%clk 0:03:00.7]} 4... Nf6 {[%clk 0:02:55.3]} 5. Bb5 {[%clk 0:03:00.7]}
5... Bd7 {[%clk 0:02:54.7]} 6. Bxc6 {[%clk 0:02:58]} 6... Bxc6 {[%clk
0:02:53.9]} 7. Ne5 {[%clk 0:02:58.9]} 7... Qc7 {[%clk 0:02:50.9]} 8. d3 {[%clk
0:02:55.2]} 8... Rd8 {[%clk 0:02:49]} 9. Nd2 {[%clk 0:02:54.9]} 9... e6 {[%clk
0:02:43.5]} 10. Qe2 {[%clk 0:02:54.5]} 10... Bd6 {[%clk 0:02:40.2]} 11. Nxc6
{[%clk 0:02:53.8]} 11... Qxc6 {[%clk 0:02:38.9]} 12. e4 {[%clk 0:02:54.2]} 12...
dxe4 {[%clk 0:02:30.4]} 13. dxe4 {[%clk 0:02:45.1]} 13... Bf4 {[%clk 0:02:27.4]}
14. Nf3 {[%clk 0:02:02.1]} 14... Qxe4 {[%clk 0:02:23.3]} 15. Bxf6 {[%clk
0:01:56.6]} 15... Qxe2+ {[%clk 0:02:21.1]} 16. Kxe2 {[%clk 0:01:57.5]} 16...
gxf6 {[%clk 0:02:20.5]} 17. Rad1 {[%clk 0:01:58.4]} 17... Ke7 {[%clk 0:02:19.8]}
18. g3 {[%clk 0:01:58]} 18... Bc7 {[%clk 0:02:14.8]} 19. a4 {[%clk 0:01:58.2]}
19... a6 {[%clk 0:02:12.5]} 20. Nd2 {[%clk 0:01:57.1]} 20... b5 {[%clk
0:02:11.2]} 21. axb5 {[%clk 0:01:58]} 21... axb5 {[%clk 0:02:10.9]} 22. Ne4
{[%clk 0:01:58.9]} 22... Bb6 {[%clk 0:02:05.1]} 23. Ra1 {[%clk 0:01:59.1]} 23...
Ra8 {[%clk 0:02:03.5]} 24. Nc3 {[%clk 0:01:59.2]} 24... b4 {[%clk 0:01:52.5]}
25. Na4 {[%clk 0:01:59.2]} 25... Ba7 {[%clk 0:01:39.6]} 26. Nb2 {[%clk
0:01:59.4]} 26... Bb6 {[%clk 0:01:28.1]} 27. Nc4 {[%clk 0:01:59.7]} 27... Bc7
{[%clk 0:01:27.8]} 28. f4 {[%clk 0:01:54.1]} 28... h5 {[%clk 0:01:26.6]} 29. Kf3
{[%clk 0:01:48.2]} 29... f5 {[%clk 0:01:21.6]} 30. Rhd1 {[%clk 0:01:40.5]} 30...
h4 {[%clk 0:01:11.1]} 31. Rh1 {[%clk 0:01:22.1]} 31... hxg3 {[%clk 0:00:58.3]}
32. hxg3 {[%clk 0:01:23]} 32... Rhd8 {[%clk 0:00:54.3]} 33. Rhe1 {[%clk
0:01:11.4]} 33... f6 {[%clk 0:00:50.8]} 34. Rh1 {[%clk 0:01:08.4]} 34... Rxa1
{[%clk 0:00:49.1]} 35. Rxa1 {[%clk 0:01:08.4]} 35... Kd7 {[%clk 0:00:47.1]} 36.
Ra7 {[%clk 0:00:31.2]} 36... Re8 {[%clk 0:00:43]} 37. Nb6+ {[%clk 0:00:21]}
37... Kc6 {[%clk 0:00:41.7]} 38. Nc4 {[%clk 0:00:21.3]} 38... Re7 {[%clk
0:00:34.3]} 39. Ra6+ {[%clk 0:00:16.9]} 39... Kd7 {[%clk 0:00:30.8]} 40. Ra7
{[%clk 0:00:17.3]} 40... e5 {[%clk 0:00:27.8]} 41. Ne3 {[%clk 0:00:16.3]} 41...
exf4 {[%clk 0:00:25.2]} 42. gxf4 {[%clk 0:00:16]} 42... Kc6 {[%clk 0:00:15.4]}
43. Nxf5 {[%clk 0:00:15]} 43... Rh7 {[%clk 0:00:15.1]} 44. Ne3 {[%clk
0:00:10.4]} 44... Rh3+ {[%clk 0:00:14.2]} 45. Ke4 {[%clk 0:00:10.8]} 45... Rh4
{[%clk 0:00:13.6]} 46. Kd3 {[%clk 0:00:11.1]} 46... Rh3 {[%clk 0:00:11.9]} 47.
Ke4 {[%clk 0:00:11.2]} 47... Rh4 {[%clk 0:00:11.9]} 48. Nd5 {[%clk 0:00:10.3]}
48... f5+ {[%clk 0:00:10.4]} 49. Kxf5 {[%clk 0:00:10]} 49... Rh5+ {[%clk
0:00:10.5]} 50. Ke4 {[%clk 0:00:09.2]} 50... Rh2 {[%clk 0:00:09.3]} 51. Rxc7+
{[%clk 0:00:08.9]} 1-0

[Event "*** Titled Tuesday Blitz"]
[Site "Chess.com"]
[Date "2020.10.27"]
[Round "7"]
[White "Dream2World_Number1"]
[Black "Unknown_IM"]
[Result "1-0"]
[WhiteElo "2100"]
[BlackElo "2322"]
[TimeControl "180+1"]
[EndTime "11:19:37 PDT"]
[Termination "Dream2World_Number1 won by checkmate"]

1. e4 {[%clk 0:03:00.9]} 1... d6 {[%clk 0:02:57.9]} 2. d4 {[%clk 0:03:00.5]}
2... Nf6 {[%clk 0:02:57.8]} 3. Bd3 {[%clk 0:03:00.5]} 3... e5 {[%clk 0:02:56.5]}
4. c3 {[%clk 0:03:00.5]} 4... Nbd7 {[%clk 0:02:55.1]} 5. Nf3 {[%clk 0:03:00.6]}
5... Be7 {[%clk 0:02:54.4]} 6. O-O {[%clk 0:03:01]} 6... O-O {[%clk 0:02:54]} 7.
Re1 {[%clk 0:03:01.1]} 7... c6 {[%clk 0:02:53.3]} 8. a4 {[%clk 0:03:01.2]} 8...
a5 {[%clk 0:02:52.5]} 9. Nbd2 {[%clk 0:03:01.5]} 9... Qc7 {[%clk 0:02:52]} 10.
Nf1 {[%clk 0:03:01.6]} 10... Re8 {[%clk 0:02:51.9]} 11. Ng3 {[%clk 0:03:01.4]}
11... Bf8 {[%clk 0:02:51.8]} 12. h3 {[%clk 0:02:55.8]} 12... Nb6 {[%clk
0:02:48.4]} 13. Bg5 {[%clk 0:02:54.9]} 13... Nbd7 {[%clk 0:02:13]} 14. Bc4
{[%clk 0:02:45.4]} 14... g6 {[%clk 0:02:09.5]} 15. Qd2 {[%clk 0:02:42.6]} 15...
Bg7 {[%clk 0:02:09.2]} 16. Bh6 {[%clk 0:02:35.7]} 16... Nb6 {[%clk 0:02:07.1]}
17. Bb3 {[%clk 0:02:34.7]} 17... Bd7 {[%clk 0:01:21.8]} 18. Qg5 {[%clk
0:02:19.8]} 18... Qd8 {[%clk 0:01:09.6]} 19. Bxg7 {[%clk 0:02:12.9]} 19... Kxg7
{[%clk 0:01:10.5]} 20. dxe5 {[%clk 0:02:13]} 20... dxe5 {[%clk 0:01:09.9]} 21.
Rad1 {[%clk 0:02:08.8]} 21... Qe7 {[%clk 0:01:05.1]} 22. Nf5+ {[%clk 0:01:59.6]}
22... Bxf5 {[%clk 0:01:04.7]} 23. exf5 {[%clk 0:01:59.6]} 23... Nfd7 {[%clk
0:00:51.8]} 24. Qg3 {[%clk 0:01:54]} 24... Qf6 {[%clk 0:00:41]} 25. Ng5 {[%clk
0:01:37.8]} 25... Nd5 {[%clk 0:00:19.5]} 26. Ne4 {[%clk 0:01:30]} 26... Qxf5
{[%clk 0:00:15.4]} 27. Nd6 {[%clk 0:01:29.9]} 27... Qe6 {[%clk 0:00:15.2]} 28.
Nxe8+ {[%clk 0:01:29.2]} 28... Rxe8 {[%clk 0:00:16.1]} 29. f4 {[%clk 0:00:48.7]}
29... e4 {[%clk 0:00:13.6]} 30. Bxd5 {[%clk 0:00:42.8]} 30... cxd5 {[%clk
0:00:13.6]} 31. Qe3 {[%clk 0:00:43.7]} 31... Nf6 {[%clk 0:00:11.8]} 32. g4
{[%clk 0:00:40.6]} 32... Rc8 {[%clk 0:00:11.1]} 33. Qd4 {[%clk 0:00:35.2]} 33...
Rc4 {[%clk 0:00:10.3]} 34. Qe5 {[%clk 0:00:35.2]} 34... Qb6+ {[%clk 0:00:10]}
35. Kh1 {[%clk 0:00:31.9]} 35... Kg8 {[%clk 0:00:06.9]} 36. b3 {[%clk
0:00:26.8]} 36... Rc6 {[%clk 0:00:04.8]} 37. g5 {[%clk 0:00:20.3]} 37... Nh5
{[%clk 0:00:04.5]} 38. Qd4 {[%clk 0:00:19.4]} 38... Qc7 {[%clk 0:00:03.8]} 39.
Qe5 {[%clk 0:00:12.9]} 39... Qb6 {[%clk 0:00:02.5]} 40. Rxd5 {[%clk 0:00:11.8]}
40... Qf2 {[%clk 0:00:02.4]} 41. Rd8# {[%clk 0:00:11.2]} 1-0

[Event "*** Titled Tuesday Blitz"]
[Site "Chess.com"]
[Date "2020.10.27"]
[Round "7"]
[White "Skat2704"]
[Black "Aygehovit1992"]
[Result "0-1"]
[WhiteElo "2437"]
[BlackElo "2636"]
[TimeControl "180+1"]
[EndTime "11:19:38 PDT"]
[Termination "Aygehovit1992 won by resignation"]

1. d4 {[%clk 0:02:59.7]} 1... d6 {[%clk 0:02:59.7]} 2. c4 {[%clk 0:02:59.3]}
2... Nf6 {[%clk 0:03:00.6]} 3. Nf3 {[%clk 0:02:57.6]} 3... g6 {[%clk 0:03:01.5]}
4. Nc3 {[%clk 0:02:56.9]} 4... Bg7 {[%clk 0:03:02.1]} 5. e4 {[%clk 0:02:57]}
5... O-O {[%clk 0:03:01.9]} 6. Be2 {[%clk 0:02:57]} 6... Nbd7 {[%clk 0:03:01.7]}
7. O-O {[%clk 0:02:56.2]} 7... e5 {[%clk 0:03:02.2]} 8. Qc2 {[%clk 0:02:55.8]}
8... Nh5 {[%clk 0:02:58.9]} 9. Rd1 {[%clk 0:02:52.6]} 9... c6 {[%clk 0:02:59.1]}
10. Bg5 {[%clk 0:02:34.5]} 10... f6 {[%clk 0:02:58.8]} 11. Bh4 {[%clk
0:02:32.7]} 11... Nf4 {[%clk 0:02:56]} 12. Bf1 {[%clk 0:02:31.7]} 12... Qe8
{[%clk 0:02:51.2]} 13. b4 {[%clk 0:02:21.1]} 13... h5 {[%clk 0:02:50.5]} 14. Bg3
{[%clk 0:02:14.9]} 14... g5 {[%clk 0:02:50.3]} 15. Bxf4 {[%clk 0:02:13.8]} 15...
exf4 {[%clk 0:02:51.2]} 16. Re1 {[%clk 0:01:51.2]} 16... Qg6 {[%clk 0:02:49.2]}
17. Qd2 {[%clk 0:01:46.8]} 17... a5 {[%clk 0:02:46.8]} 18. b5 {[%clk 0:01:45]}
18... Kh8 {[%clk 0:02:33]} 19. Rab1 {[%clk 0:01:36.1]} 19... Rg8 {[%clk
0:02:16]} 20. e5 {[%clk 0:01:35]} 20... dxe5 {[%clk 0:02:13.7]} 21. dxe5 {[%clk
0:01:30.7]} 21... Nxe5 {[%clk 0:02:13.5]} 22. Nxe5 {[%clk 0:01:29.6]} 22... fxe5
{[%clk 0:02:14.4]} 23. bxc6 {[%clk 0:01:23.4]} 23... bxc6 {[%clk 0:02:12.6]} 24.
Bd3 {[%clk 0:01:21.2]} 24... Qh6 {[%clk 0:02:10.3]} 25. Ne4 {[%clk 0:01:15.9]}
25... g4 {[%clk 0:02:09.1]} 26. c5 {[%clk 0:01:07.8]} 26... Be6 {[%clk
0:01:47.2]} 27. Rb7 {[%clk 0:01:02.9]} 27... f3 {[%clk 0:01:40.3]} 28. Qxh6+
{[%clk 0:00:59.7]} 28... Bxh6 {[%clk 0:01:41.2]} 29. g3 {[%clk 0:00:57.6]} 29...
Rg7 {[%clk 0:01:39]} 30. Reb1 {[%clk 0:00:55.9]} 30... Bf5 {[%clk 0:01:34.2]}
31. Rb8+ {[%clk 0:00:50.1]} 31... Rg8 {[%clk 0:01:32.6]} 32. R8b7 {[%clk
0:00:48.6]} 32... Rg7 {[%clk 0:01:13.9]} 33. Rb8+ {[%clk 0:00:47.5]} 33... Rxb8
{[%clk 0:01:14.2]} 34. Rxb8+ {[%clk 0:00:46.9]} 34... Kh7 {[%clk 0:01:14.8]} 35.
Nf6+ {[%clk 0:00:42.7]} 35... Kg6 {[%clk 0:01:14.5]} 36. Bxf5+ {[%clk
0:00:40.2]} 36... Kxf5 {[%clk 0:01:15.4]} 37. Nxh5 {[%clk 0:00:26.8]} 37... Rd7
{[%clk 0:01:12.2]} 38. h4 {[%clk 0:00:20.8]} 38... Rd1+ {[%clk 0:01:10.8]} 39.
Kh2 {[%clk 0:00:20.3]} 39... Rd2 {[%clk 0:01:09.5]} 40. Kg1 {[%clk 0:00:19.2]}
40... e4 {[%clk 0:01:09.3]} 41. Rf8+ {[%clk 0:00:17.7]} 41... Ke5 {[%clk
0:01:09]} 42. Re8+ {[%clk 0:00:16.4]} 42... Kd4 {[%clk 0:01:02.5]} 43. Nf6
{[%clk 0:00:15.1]} 43... e3 {[%clk 0:00:58.3]} 44. fxe3+ {[%clk 0:00:14.7]}
44... Bxe3+ {[%clk 0:00:57.9]} 45. Kh1 {[%clk 0:00:14.6]} 45... Rd1+ {[%clk
0:00:48.1]} 46. Kh2 {[%clk 0:00:14.2]} 46... Bg1+ {[%clk 0:00:49]} 47. Kh1
{[%clk 0:00:13.3]} 47... Be3+ {[%clk 0:00:34.7]} 48. Kh2 {[%clk 0:00:12.4]}
48... Rd2+ {[%clk 0:00:35.6]} 49. Kh1 {[%clk 0:00:12.1]} 49... f2 {[%clk
0:00:36.5]} 50. Kg2 {[%clk 0:00:11.4]} 50... f1=Q+ {[%clk 0:00:30.8]} 51. Kxf1
{[%clk 0:00:11]} 51... Rf2+ {[%clk 0:00:31.4]} 52. Ke1 {[%clk 0:00:10.9]} 52...
Rxf6 {[%clk 0:00:32.3]} 53. Rd8+ {[%clk 0:00:09.8]} 53... Ke4 {[%clk 0:00:31.2]}
54. h5 {[%clk 0:00:09.8]} 54... Bf2+ {[%clk 0:00:30.9]} 0-1